[Event "28th Bosnjaci Open 2024"]
[Site "Bosnjaci"]
[Date "2024.01.07"]
[Round "7.15"]
[White "Goric, Esad"]
[Black "Tomas, Ante"]
[Result "1/2-1/2"]
[ECO "D11"]
[WhiteElo "2196"]
[BlackElo "2014"]
[Annotator "RC"]
[PlyCount "76"]
[EventDate "2024.01.02"]
[EventType "swiss"]
[EventCountry "CRO"]
[SourceTitle "playchess.com"]
[Source "ChessBase"]
[SourceQuality "1"]
[TimeControl "5400+30"]

1. Nf3 {[%emt 0:01:54]} d5 {[%emt 0:00:09]} 2. c4 {[%emt 0:00:11]} c6 {[%emt 0:00:34]} 3. d4 {[%emt 0:00:05]} Nf6 {[%emt 0:00:09]} 4. Qc2 {[%emt 0:00:03]} g6 {[%emt 0:01:00]} 5. e3 {[%emt 0:00:08]} Bg7 {[%emt 0:00:03]} 6. Be2 {[%emt 0:01:00]} O-O {[%emt 0:00:11]} 7. O-O {[%emt 0:00:03]} Bf5 {[%emt 0:01:35]} 8. Qb3 {[%emt 0:00:09]} Qb6 {[%emt 0:03:33]} 9. Nc3 {[%emt 0:00:04]} Qxb3 {[%emt 0:01:29]} 10. axb3 {[%emt 0:00:03]} Nbd7 {[%emt 0:02:10]} 11. h3 {[%emt 0:02:46]} h5 {[%emt 0:11:10]} 12. Nh4 {[%emt 0:00:47]} Bc2 {[%emt 0:03:11]} 13. b4 {[%emt 0:00:18]} e5 {[%emt 0:05:09]} 14. c5 {[%emt 0:01:53]} exd4 {[%emt 0:09:47]} 15. exd4 {[%emt 0:00:03]} Ne4 {[%emt 0:10:51]} 16. Nf3 {[%emt 0:01:34]} a6 {[%emt 0:02:41]} 17. Ne1 {[%emt 0:04:52]} Nxc3 {[%emt 0:03:45]} 18. bxc3 {[%emt 0:00:05]} Bf5 {[%emt 0:05:22]} 19. Be3 {[%emt 0:00:10]} Rfe8 {[%emt 0:01:17]} 20. Bd3 {[%emt 0:02:30]} Be4 {[%emt 0:00:40]} 21. Bxe4 {[%emt 0:01:20]} Rxe4 {[%emt 0:01:10]} 22. Nd3 {[%emt 0:00:14]} Kh7 {[%emt 0:01:03]} 23. Nc1 {[%emt 0:00:09]} Nf8 {[%emt 0:05:49]} 24. Nb3 {[%emt 0:00:12]} Rae8 {[%emt 0:01:39]} 25. Na5 {[%emt 0:00:15]} R8e7 {[%emt 0:00:34]} 26. Rfe1 {[%emt 0:01:03]} Bh6 {[%emt 0:02:20]} 27. Kf1 {[%emt 0:00:13]} f5 {[%emt 0:01:47]} 28. Bxh6 {[%emt 0:00:14]} Kxh6 {[%emt 0:00:39]} 29. f3 {[%emt 0:00:03]} Re3 {[%emt 0:04:24]} 30. Rxe3 {[%emt 0:00:56]} Rxe3 {[%emt 0:00:00]} 31. Nxb7 {[%emt 0:00:21]} Rxc3 {[%emt 0:00:05]} 32. Nd8 {[%emt 0:00:21]} Rc4 {[%emt 0:00:54]} 33. Nxc6 {[%emt 0:00:03]} Ne6 {[%emt 0:00:13]} 34. Rxa6 {[%emt 0:00:08]} Nf4 {[%emt 0:04:22]} 35. g3 {[%emt 0:02:50]} Rc1+ {[%emt 0:03:53]} 36. Kf2 {[%emt 0:00:14]} Rc2+ {[%emt 0:01:47]} 37. Ke3 {[%emt 0:00:16]} Ng2+ {[%emt 0:00:56]} 38. Kd3 {[%emt 0:00:09]} Ne1+ {[%emt 0:00:08]} 1/2-1/2

[Event "28th Bosnjaci Open 2024"]
[Site "Bosnjaci"]
[Date "2024.01.07"]
[Round "7.16"]
[White "Maddipati, Srihas"]
[Black "Markovic, Franjo-Josip"]
[Result "0-1"]
[ECO "C59"]
[WhiteElo "1640"]
[BlackElo "2194"]
[Annotator "RC"]
[PlyCount "72"]
[EventDate "2024.01.02"]
[EventType "swiss"]
[EventCountry "CRO"]
[SourceTitle "playchess.com"]
[Source "ChessBase"]
[SourceQuality "1"]
[TimeControl "5400+30"]

1. e4 {[%emt 0:00:04]} e5 {[%emt 0:03:04]} 2. Nf3 {[%emt 0:02:30]} Nc6 {[%emt 0:00:19]} 3. Bc4 {[%emt 0:02:29]} Nf6 {[%emt 0:00:23]} 4. Ng5 {[%emt 0:02:40]} d5 {[%emt 0:00:28]} 5. exd5 {[%emt 0:02:21]} Na5 {[%emt 0:00:36]} 6. Bb5+ {[%emt 0:02:32]} c6 {[%emt 0:00:07]} 7. dxc6 {[%emt 0:02:28]} bxc6 {[%emt 0:00:14]} 8. Be2 {[%emt 0:02:30]} h6 {[%emt 0:01:54]} 9. Nf3 {[%emt 0:02:48]} e4 {[%emt 0:01:39]} 10. Ne5 {[%emt 0:02:12]} Bc5 {[%emt 0:02:18]} 11. c3 {[%emt 0:03:06]} Qd5 {[%emt 0:03:53]} 12. d4 {[%emt 0:01:55]} exd3 {[%emt 0:02:09]} 13. Nxd3 {[%emt 0:02:27]} Bb6 {[%emt 0:17:37]} 14. O-O {[%emt 0:02:34]} Bf5 {[%emt 0:03:41]} 15. b4 {[%emt 0:18:46]} Nb7 {[%emt 0:05:25]} 16. Bf3 {[%emt 0:01:32]} Ne4 {[%emt 0:01:48]} 17. Nd2 {[%emt 0:03:35]} O-O-O {[%emt 0:09:56]} 18. Nf4 {[%emt 0:02:42]} Qe5 {[%emt 0:02:52]} 19. Nc4 {[%emt 0:02:59]} Rxd1 {[%emt 0:00:56]} 20. Rxd1 {[%emt 0:01:44]} Bxf2+ {[%emt 0:01:09]} 21. Kf1 {[%emt 0:00:14]} Qxc3 {[%emt 0:00:22]} 22. Bxe4 {[%emt 0:01:46]} Bxe4 {[%emt 0:01:23]} 23. Kxf2 {[%emt 0:01:11]} Qxa1 {[%emt 0:00:53]} 24. Re1 {[%emt 0:02:32]} Qd4+ {[%emt 0:01:02]} 25. Ne3 {[%emt 0:02:32]} Bd3 {[%emt 0:00:30]} 26. Nxd3 {[%emt 0:00:25]} Qxd3 {[%emt 0:00:06]} 27. Bb2 {[%emt 0:00:31]} Re8 {[%emt 0:00:18]} 28. Bxg7 {[%emt 0:00:14]} Nd6 {[%emt 0:00:23]} 29. Bxh6 {[%emt 0:00:16]} Ne4+ {[%emt 0:01:26]} 30. Kf3 {[%emt 0:00:04]} Nd2+ {[%emt 0:01:19]} 31. Kf2 {[%emt 0:00:06]} Nc4 {[%emt 0:00:34]} 32. Rd1 {[%emt 0:00:15]} Qe4 {[%emt 0:00:34]} 33. Nxc4 {[%emt 0:00:08]} Qe2+ {[%emt 0:00:16]} 34. Kg3 {[%emt 0:00:05]} Rg8+ {[%emt 0:00:11]} 35. Kf4 {[%emt 0:00:09]} Rg4+ {[%emt 0:00:17]} 36. Kf5 {[%emt 0:00:05]} Qe6# {[%emt 0:00:08]} 0-1

[Event "28th Bosnjaci Open 2024"]
[Site "Bosnjaci"]
[Date "2024.01.07"]
[Round "7.17"]
[White "Vucenovic, Damian"]
[Black "Konjevic, Nikola"]
[Result "1-0"]
[ECO "C54"]
[WhiteElo "2193"]
[BlackElo "2035"]
[Annotator "RC"]
[PlyCount "69"]
[EventDate "2024.01.02"]
[EventType "swiss"]
[EventCountry "CRO"]
[SourceTitle "playchess.com"]
[Source "ChessBase"]
[SourceQuality "1"]
[TimeControl "5400+30"]

1. e4 {[%emt 0:00:07]} e5 {[%emt 0:00:07]} 2. Nf3 {[%emt 0:00:18]} Nc6 {[%emt 0:00:08]} 3. Bc4 {[%emt 0:00:24]} Bc5 {[%emt 0:00:06]} 4. c3 {[%emt 0:00:36]} Nf6 {[%emt 0:00:15]} 5. d3 {[%emt 0:00:44]} d6 {[%emt 0:00:11]} 6. Nbd2 {[%emt 0:00:12]} a6 {[%emt 0:00:07]} 7. Nf1 {[%emt 0:00:31]} h6 {[%emt 0:01:31]} 8. Bb3 {[%emt 0:00:33]} Be6 {[%emt 0:00:25]} 9. Ng3 {[%emt 0:00:18]} d5 {[%emt 0:00:17]} 10. exd5 {[%emt 0:01:33]} Bxd5 {[%emt 0:00:32]} 11. O-O {[%emt 0:01:13]} O-O {[%emt 0:01:59]} 12. Bc2 {[%emt 0:09:18]} Qd7 {[%emt 0:07:07]} 13. b4 {[%emt 0:01:08]} Bd6 {[%emt 0:00:33]} 14. Re1 {[%emt 0:04:02]} Be6 {[%emt 0:04:53]} 15. a4 {[%emt 0:03:22]} Nh7 {[%emt 0:11:03]} 16. Bb2 {[%emt 0:05:52]} b5 {[%emt 0:01:49]} 17. Ne4 {[%emt 0:01:09]} f5 {[%emt 0:11:13]} 18. Nc5 {[%emt 0:00:36]} Bxc5 {[%emt 0:00:16]} 19. bxc5 {[%emt 0:00:17]} Qd5 {[%emt 0:05:15]} 20. d4 {[%emt 0:07:40]} e4 {[%emt 0:07:08]} 21. Nh4 {[%emt 0:07:13]} Ne7 {[%emt 0:11:23]} 22. g3 {[%emt 0:11:06]} g5 {[%emt 0:05:32]} 23. Ng2 {[%emt 0:00:31]} Qd7 {[%emt 0:04:28]} 24. h4 {[%emt 0:06:54]} Nd5 {[%emt 0:02:41]} 25. f3 {[%emt 0:07:40]} Nhf6 {[%emt 0:01:16]} 26. hxg5 {[%emt 0:02:22]} hxg5 {[%emt 0:00:07]} 27. fxe4 {[%emt 0:00:38]} Nxe4 {[%emt 0:00:52]} 28. Bxe4 {[%emt 0:00:30]} fxe4 {[%emt 0:00:10]} 29. Rxe4 {[%emt 0:01:15]} Qf7 {[%emt 0:06:14]} 30. Qd2 {[%emt 0:01:47]} Qf6 {[%emt 0:00:11]} 31. Re5 {[%emt 0:02:19]} Nf4 {[%emt 0:02:43]} 32. gxf4 {[%emt 0:04:23]} gxf4 {[%emt 0:00:02]} 33. Qxf4 {[%emt 0:02:52]} Qxf4 {[%emt 0:00:18]} 34. Nxf4 {[%emt 0:00:10]} Rxf4 {[%emt 0:00:04]} 35. Rxe6 {[%emt 0:01:23]} 1-0

[Event "28th Bosnjaci Open 2024"]
[Site "Bosnjaci"]
[Date "2024.01.07"]
[Round "7.18"]
[White "Sipic, Hrvoje"]
[Black "Grgantov, Marin"]
[Result "0-1"]
[ECO "D02"]
[WhiteElo "2185"]
[BlackElo "1973"]
[Annotator "RC"]
[PlyCount "76"]
[EventDate "2024.01.02"]
[EventType "swiss"]
[EventCountry "CRO"]
[SourceTitle "playchess.com"]
[Source "ChessBase"]
[SourceQuality "1"]
[TimeControl "5400+30"]

1. Nf3 {[%emt 0:00:03]} Nf6 {[%emt 0:00:26]} 2. d4 {[%emt 0:00:32]} d5 {[%emt 0:00:07]} 3. Bf4 {[%emt 0:00:13]} c5 {[%emt 0:00:15]} 4. e3 {[%emt 0:00:10]} Nc6 {[%emt 0:00:46]} 5. Be2 {[%emt 0:01:08]} cxd4 {[%emt 0:02:36]} 6. exd4 {[%emt 0:00:08]} Bg4 {[%emt 0:00:06]} 7. c3 {[%emt 0:00:42]} Bxf3 {[%emt 0:01:48]} 8. Bxf3 {[%emt 0:00:11]} e6 {[%emt 0:00:09]} 9. Qb3 {[%emt 0:01:10]} Qd7 {[%emt 0:01:33]} 10. a4 {[%emt 0:03:36]} Be7 {[%emt 0:10:15]} 11. Nd2 {[%emt 0:01:58]} O-O {[%emt 0:01:38]} 12. O-O {[%emt 0:01:10]} Rfc8 {[%emt 0:04:06]} 13. Rfe1 {[%emt 0:01:18]} Bd6 {[%emt 0:05:52]} 14. Bg5 {[%emt 0:01:09]} Ne8 {[%emt 0:00:39]} 15. a5 {[%emt 0:06:44]} a6 {[%emt 0:05:48]} 16. Qa4 {[%emt 0:03:45]} h6 {[%emt 0:07:33]} 17. Bh4 {[%emt 0:02:50]} f5 {[%emt 0:00:53]} 18. c4 {[%emt 0:05:38]} Qf7 {[%emt 0:12:44]} 19. cxd5 {[%emt 0:10:42]} exd5 {[%emt 0:00:10]} 20. Bg3 {[%emt 0:15:09]} f4 {[%emt 0:00:40]} 21. Bg4 {[%emt 0:01:26]} fxg3 {[%emt 0:03:31]} 22. Be6 {[%emt 0:05:41]} gxf2+ {[%emt 0:00:06]} 23. Kh1 {[%emt 0:00:04]} fxe1=Q+ {[%emt 0:00:09]} 24. Rxe1 {[%emt 0:00:05]} Qxe6 {[%emt 0:07:33]} 25. Rxe6 {[%emt 0:00:16]} Kf7 {[%emt 0:33:37]} 26. Re1 {[%emt 0:00:37]} Nf6 {[%emt 0:00:00]} 27. Nf3 {[%emt 0:03:18]} Re8 {[%emt 0:00:00]} 28. Rf1 {[%emt 0:00:37]} Re4 {[%emt 0:00:00]} 29. Qb3 {[%emt 0:02:08]} Rb8 {[%emt 0:00:00]} 30. Ne5+ {[%emt 0:03:26]} Bxe5 {[%emt 0:00:00]} 31. Qxd5+ {[%emt 0:03:50]} Ke7 {[%emt 0:00:00]} 32. Qc5+ {[%emt 0:01:12]} Bd6 {[%emt 0:00:00]} 33. Qf5 {[%emt 0:00:43]} Nxd4 {[%emt 0:00:00]} 34. Qg6 {[%emt 0:00:16]} Ne6 {[%emt 0:00:00]} 35. h3 {[%emt 0:00:51]} Rc8 {[%emt 0:00:00]} 36. Rd1 {[%emt 0:02:27]} Rc5 {[%emt 0:00:00]} 37. h4 {[%emt 0:00:58]} Rxh4+ {[%emt 0:00:00]} 38. Kg1 {[%emt 0:00:04]} Re4 {[%emt 0:00:00]} 0-1

[Event "28th Bosnjaci Open 2024"]
[Site "Bosnjaci"]
[Date "2024.01.07"]
[Round "7.19"]
[White "Tukovic, Dario"]
[Black "Pehar, Borna"]
[Result "1-0"]
[ECO "D97"]
[WhiteElo "2132"]
[BlackElo "1906"]
[Annotator "RC"]
[PlyCount "157"]
[EventDate "2024.01.02"]
[EventType "swiss"]
[EventCountry "CRO"]
[SourceTitle "playchess.com"]
[Source "ChessBase"]
[SourceQuality "1"]
[TimeControl "5400+30"]

1. d4 {[%emt 0:03:26]} Nf6 {[%emt 0:00:11]} 2. c4 {[%emt 0:00:19]} g6 {[%emt 0:00:12]} 3. Nc3 {[%emt 0:00:11]} d5 {[%emt 0:00:07]} 4. Nf3 {[%emt 0:00:36]} Bg7 {[%emt 0:00:10]} 5. Qb3 {[%emt 1:28:28]} dxc4 {[%emt 0:00:04]} 6. Qxc4 {[%emt 0:00:00]} O-O {[%emt 0:00:05]} 7. e4 {[%emt 0:00:00]} Nc6 {[%emt 0:00:13]} 8. d5 {[%emt 0:00:00]} Na5 {[%emt 0:00:26]} 9. Qa4 {[%emt 0:00:00]} c6 {[%emt 0:00:51]} 10. Be3 {[%emt 0:00:00]} Bd7 {[%emt 0:13:46]} 11. Qa3 {[%emt 0:00:00]} cxd5 {[%emt 0:18:30]} 12. exd5 {[%emt 0:00:00]} Bg4 {[%emt 0:04:13]} 13. Be2 {[%emt 0:00:00]} Bxf3 {[%emt 0:01:48]} 14. Bxf3 {[%emt 0:00:00]} Nc4 {[%emt 0:00:58]} 15. Qb4 {[%emt 0:00:00]} Nxe3 {[%emt 0:02:16]} 16. fxe3 {[%emt 0:00:00]} Ne8 {[%emt 0:07:01]} 17. O-O {[%emt 0:00:00]} Nd6 {[%emt 0:00:15]} 18. e4 {[%emt 0:00:00]} Rc8 {[%emt 0:03:45]} 19. Rfe1 {[%emt 0:01:39]} Nc4 {[%emt 0:45:09]} 20. Rac1 {[%emt 0:00:02]} Qb6+ {[%emt 0:00:00]} 21. Qxb6 {[%emt 0:00:06]} axb6 {[%emt 0:00:00]} 22. b3 {[%emt 0:01:57]} Nb2 {[%emt 0:00:00]} 23. Nb5 {[%emt 0:01:15]} Nd3 {[%emt 0:00:00]} 24. Rxc8 {[%emt 0:00:01]} Rxc8 {[%emt 0:00:00]} 25. Rd1 {[%emt 0:01:16]} Nc1 {[%emt 0:00:00]} 26. d6 {[%emt 0:02:38]} exd6 {[%emt 0:00:00]} 27. Nxd6 {[%emt 0:00:22]} Rc2 {[%emt 0:00:00]} 28. Nxb7 {[%emt 0:00:35]} Be5 {[%emt 0:00:00]} 29. Nd6 {[%emt 0:01:01]} Nxa2 {[%emt 0:00:00]} 30. Nc4 {[%emt 0:00:14]} Bf4 {[%emt 0:00:00]} 31. g3 {[%emt 0:00:17]} Bg5 {[%emt 0:00:00]} 32. h4 {[%emt 0:00:28]} Bh6 {[%emt 0:00:00]} 33. e5 {[%emt 0:00:51]} Rc3 {[%emt 0:00:00]} 34. Kg2 {[%emt 0:00:27]} Rxb3 {[%emt 0:00:00]} 35. Rd8+ {[%emt 0:00:14]} Bf8 {[%emt 0:00:00]} 36. Nd6 {[%emt 0:00:39]} Nc3 {[%emt 0:00:00]} 37. Bc6 {[%emt 0:00:50]} Rb2+ {[%emt 0:00:00]} 38. Kf3 {[%emt 0:00:29]} Kg7 {[%emt 0:05:56]} 39. Ne8+ {[%emt 0:00:27]} Kg8 {[%emt 0:04:04]} 40. Nf6+ {[%emt 0:00:27]} Kg7 {[%emt 0:00:00]} 41. h5 {[%emt 0:01:08]} Bc5 {[%emt 0:00:00]} 42. Kg4 {[%emt 0:00:32]} Rb4+ {[%emt 0:00:00]} 43. Kh3 {[%emt 0:00:15]} Ne2 {[%emt 0:00:00]} 44. Rg8+ {[%emt 0:00:45]} Kh6 {[%emt 0:00:00]} 45. Rh8 {[%emt 0:00:27]} Rb2 {[%emt 0:00:56]} 46. Rxh7+ {[%emt 0:00:12]} Kg5 {[%emt 0:00:01]} 47. Ne4+ {[%emt 0:00:44]} Kf5 {[%emt 0:00:00]} 48. Rxf7+ {[%emt 0:00:32]} Kxe5 {[%emt 0:03:33]} 49. Nxc5 {[%emt 0:00:25]} Ng1+ {[%emt 0:00:30]} 50. Kh4 {[%emt 0:00:42]} Rh2+ {[%emt 0:00:00]} 51. Kg5 {[%emt 0:00:08]} Rxh5+ {[%emt 0:00:00]} 52. Kxg6 {[%emt 0:00:03]} Rh3 {[%emt 0:00:00]} 53. Nd7+ {[%emt 0:00:42]} Kd6 {[%emt 0:00:00]} 54. Rf6+ {[%emt 0:00:01]} Kc7 {[%emt 0:00:09]} 55. g4 {[%emt 0:00:08]} Rg3 {[%emt 0:00:04]} 56. Ne5 {[%emt 0:00:27]} Nh3 {[%emt 0:00:20]} 57. Kf5 {[%emt 0:01:30]} Rg1 {[%emt 0:01:18]} 58. Nf3 {[%emt 0:00:52]} Rg3 {[%emt 0:00:27]} 59. g5 {[%emt 0:00:23]} b5 {[%emt 0:00:03]} 60. g6 {[%emt 0:00:34]} b4 {[%emt 0:00:09]} 61. Ne5 {[%emt 0:00:35]} b3 {[%emt 0:00:22]} 62. Be4 {[%emt 0:00:30]} b2 {[%emt 0:01:29]} 63. Rc6+ {[%emt 0:00:20]} Kd8 {[%emt 0:00:07]} 64. Rb6 {[%emt 0:00:31]} Ke7 {[%emt 0:00:16]} 65. Rb7+ {[%emt 0:00:23]} Kd6 {[%emt 0:00:04]} 66. Nc4+ {[%emt 0:00:39]} Kc5 {[%emt 0:00:19]} 67. Nxb2 {[%emt 0:00:13]} Ng5 {[%emt 0:00:14]} 68. Nd3+ {[%emt 0:00:58]} Kd6 {[%emt 0:00:01]} 69. Rb6+ {[%emt 0:00:34]} Ke7 {[%emt 0:00:11]} 70. Nf4 {[%emt 0:00:17]} Kf8 {[%emt 0:00:28]} 71. Ne6+ {[%emt 0:00:25]} Nxe6 {[%emt 0:00:01]} 72. Rxe6 {[%emt 0:00:23]} Kg7 {[%emt 0:00:03]} 73. Re7+ {[%emt 0:00:17]} Kf8 {[%emt 0:00:02]} 74. Rb7 {[%emt 0:00:24]} Rg1 {[%emt 0:00:14]} 75. Kf6 {[%emt 0:00:26]} Rf1+ {[%emt 0:00:12]} 76. Bf5 {[%emt 0:00:39]} Re1 {[%emt 0:00:05]} 77. Rb8+ {[%emt 0:00:14]} Re8 {[%emt 0:00:02]} 78. g7+ {[%emt 0:00:17]} Kg8 {[%emt 0:00:01]} 79. Rxe8# {[%emt 0:00:02]} 1-0

[Event "28th Bosnjaci Open 2024"]
[Site "Bosnjaci"]
[Date "2024.01.07"]
[Round "7.20"]
[White "Bobanac, Miro"]
[Black "Maravic, Ivan"]
[Result "1-0"]
[ECO "A24"]
[WhiteElo "2238"]
[BlackElo "1991"]
[Annotator "RC"]
[PlyCount "179"]
[EventDate "2024.01.02"]
[EventType "swiss"]
[EventCountry "CRO"]
[SourceTitle "playchess.com"]
[Source "ChessBase"]
[SourceQuality "1"]
[TimeControl "5400+30"]

1. Nf3 {[%emt 0:00:04]} Nf6 {[%emt 0:00:29]} 2. c4 {[%emt 0:00:45]} g6 {[%emt 0:00:36]} 3. g3 {[%emt 0:00:09]} Bg7 {[%emt 0:00:17]} 4. Bg2 {[%emt 0:00:11]} O-O {[%emt 0:00:34]} 5. O-O {[%emt 0:00:29]} d6 {[%emt 0:00:33]} 6. Nc3 {[%emt 0:01:00]} e5 {[%emt 0:01:10]} 7. d3 {[%emt 0:00:45]} c6 {[%emt 0:00:48]} 8. Rb1 {[%emt 0:01:17]} a5 {[%emt 0:00:33]} 9. a3 {[%emt 0:00:24]} Re8 {[%emt 0:00:33]} 10. b4 {[%emt 0:07:36]} axb4 {[%emt 0:01:16]} 11. axb4 {[%emt 0:00:30]} d5 {[%emt 0:01:19]} 12. Bg5 {[%emt 0:05:06]} h6 {[%emt 0:06:55]} 13. Bxf6 {[%emt 0:00:09]} Bxf6 {[%emt 0:00:13]} 14. Qc2 {[%emt 0:03:15]} Be6 {[%emt 0:06:56]} 15. Nd2 {[%emt 0:03:33]} dxc4 {[%emt 0:24:16]} 16. Nxc4 {[%emt 0:03:48]} Bxc4 {[%emt 0:05:00]} 17. dxc4 {[%emt 0:00:17]} Qe7 {[%emt 0:02:53]} 18. Ne4 {[%emt 0:01:37]} Na6 {[%emt 0:05:15]} 19. c5 {[%emt 0:05:08]} Nc7 {[%emt 0:04:21]} 20. Rfd1 {[%emt 0:00:50]} Nb5 {[%emt 0:02:43]} 21. Qb3 {[%emt 0:19:28]} Red8 {[%emt 0:04:33]} 22. e3 {[%emt 0:03:11]} Bg7 {[%emt 0:09:58]} 23. Bf1 {[%emt 0:00:43]} Nc7 {[%emt 0:02:11]} 24. Bc4 {[%emt 0:01:07]} Ne8 {[%emt 0:01:20]} 25. b5 {[%emt 0:15:11]} Kf8 {[%emt 0:06:01]} 26. Rxd8 {[%emt 0:03:28]} Rxd8 {[%emt 0:00:08]} 27. bxc6 {[%emt 0:00:08]} bxc6 {[%emt 0:00:20]} 28. Qb7 {[%emt 0:00:17]} Rd1+ {[%emt 0:03:10]} 29. Kg2 {[%emt 0:00:09]} Rxb1 {[%emt 0:00:07]} 30. Qxb1 {[%emt 0:00:11]} f5 {[%emt 0:01:06]} 31. Nd6 {[%emt 0:00:23]} Nxd6 {[%emt 0:01:41]} 32. cxd6 {[%emt 0:00:12]} Qxd6 {[%emt 0:00:51]} 33. Qb7 {[%emt 0:00:15]} Qe7 {[%emt 0:01:24]} 34. Qxc6 {[%emt 0:00:29]} Bf6 {[%emt 0:05:10]} 35. Qd5 {[%emt 0:01:03]} Qg7 {[%emt 0:01:14]} 36. h4 {[%emt 0:01:21]} h5 {[%emt 0:00:47]} 37. Qa8+ {[%emt 0:04:32]} Ke7 {[%emt 0:00:08]} 38. Qa3+ {[%emt 0:01:03]} Kd8 {[%emt 0:00:46]} 39. Qa8+ {[%emt 0:04:19]} Ke7 {[%emt 0:00:47]} 40. Qb7+ {[%emt 0:00:29]} Kf8 {[%emt 0:01:09]} 41. Qc8+ {[%emt 0:00:40]} Ke7 {[%emt 0:00:15]} 42. Bb5 {[%emt 0:01:48]} Qh8 {[%emt 0:00:49]} 43. Qd7+ {[%emt 0:01:07]} Kf8 {[%emt 0:00:07]} 44. Bc4 {[%emt 0:00:26]} Qg7 {[%emt 0:01:00]} 45. Qc8+ {[%emt 0:00:37]} Ke7 {[%emt 0:00:12]} 46. Qc5+ {[%emt 0:00:15]} Kd8 {[%emt 0:00:35]} 47. Bb5 {[%emt 0:03:25]} Qe7 {[%emt 0:00:55]} 48. Qb6+ {[%emt 0:02:09]} Kc8 {[%emt 0:00:13]} 49. Qc6+ {[%emt 0:00:32]} Kb8 {[%emt 0:00:32]} 50. Ba6 {[%emt 0:00:53]} Ka7 {[%emt 0:00:19]} 51. Bc8 {[%emt 0:00:33]} Kb8 {[%emt 0:00:45]} 52. Bd7 {[%emt 0:00:28]} Ka7 {[%emt 0:00:39]} 53. Qb5 {[%emt 0:02:56]} Qd6 {[%emt 0:00:36]} 54. Bc6 {[%emt 0:00:09]} Qe7 {[%emt 0:00:28]} 55. Qa5+ {[%emt 0:02:03]} Kb8 {[%emt 0:00:07]} 56. Qb6+ {[%emt 0:00:37]} Kc8 {[%emt 0:00:05]} 57. Bd5 {[%emt 0:00:39]} Kd7 {[%emt 0:01:11]} 58. Qc6+ {[%emt 0:00:19]} Kd8 {[%emt 0:00:17]} 59. Kh2 {[%emt 0:00:42]} e4 {[%emt 0:00:28]} 60. Kg2 {[%emt 0:00:27]} Qg7 {[%emt 0:00:54]} 61. Qd6+ {[%emt 0:00:54]} Ke8 {[%emt 0:00:18]} 62. Qb8+ {[%emt 0:00:31]} Ke7 {[%emt 0:00:15]} 63. Qc8 {[%emt 0:00:51]} Kd6 {[%emt 0:00:54]} 64. Qe6+ {[%emt 0:00:53]} Kc7 {[%emt 0:00:14]} 65. Qe8 {[%emt 0:00:42]} Kd6 {[%emt 0:00:26]} 66. Bf7 {[%emt 0:00:13]} g5 {[%emt 0:00:41]} 67. hxg5 {[%emt 0:00:40]} Bxg5 {[%emt 0:00:41]} 68. Qe6+ {[%emt 0:00:12]} Kc7 {[%emt 0:00:07]} 69. Bxh5 {[%emt 0:00:55]} Qf6 {[%emt 0:00:45]} 70. Qd5 {[%emt 0:00:48]} Bh6 {[%emt 0:00:28]} 71. Bf7 {[%emt 0:00:13]} Bg5 {[%emt 0:00:42]} 72. Be6 {[%emt 0:00:09]} f4 {[%emt 0:00:17]} 73. exf4 {[%emt 0:00:35]} Bxf4 {[%emt 0:00:21]} 74. gxf4 {[%emt 0:00:49]} Qxf4 {[%emt 0:00:21]} 75. Qf5 {[%emt 0:00:17]} Qh4 {[%emt 0:00:21]} 76. Qg4 {[%emt 0:00:23]} Qh7 {[%emt 0:00:30]} 77. Bf5 {[%emt 0:00:10]} Qh6 {[%emt 0:00:40]} 78. Bxe4 {[%emt 0:00:21]} Qd2 {[%emt 0:00:13]} 79. Kg3 {[%emt 0:00:39]} Qc3+ {[%emt 0:00:17]} 80. f3 {[%emt 0:00:49]} Qe1+ {[%emt 0:00:16]} 81. Kf4 {[%emt 0:00:24]} Qd2+ {[%emt 0:00:21]} 82. Kf5 {[%emt 0:00:10]} Qd7+ {[%emt 0:00:20]} 83. Kg5 {[%emt 0:00:33]} Qg7+ {[%emt 0:00:56]} 84. Kh4 {[%emt 0:00:35]} Qh6+ {[%emt 0:00:11]} 85. Kg3 {[%emt 0:00:06]} Qh1 {[%emt 0:00:09]} 86. Qg7+ {[%emt 0:00:35]} Kb6 {[%emt 0:00:35]} 87. Qd4+ {[%emt 0:00:49]} Kb5 {[%emt 0:00:26]} 88. f4 {[%emt 0:00:37]} Qe1+ {[%emt 0:00:28]} 89. Kg4 {[%emt 0:00:13]} Qd1+ {[%emt 0:02:18]} 90. Qxd1 {[%emt 0:00:13]} 1-0

[Event "28th Bosnjaci Open 2024"]
[Site "Bosnjaci"]
[Date "2024.01.08"]
[Round "8.1"]
[White "Plenkovic, Zdenko"]
[Black "Saric, Ante"]
[Result "1/2-1/2"]
[ECO "B83"]
[WhiteElo "2335"]
[BlackElo "2508"]
[Annotator "TA"]
[PlyCount "54"]
[EventDate "2024.01.02"]
[EventType "swiss"]
[EventCountry "CRO"]
[SourceTitle "playchess.com"]
[Source "ChessBase"]
[SourceQuality "1"]
[TimeControl "5400+30"]

{[%evp 16,54,7,0,3,0,12,7,16,0,33,35,34,5,32,24,15,-7,-8,-13,-14,-12,-9,-18,-11,-13,-5,-4,-3,-5,-8,-13,0,-3,0,0,0,0,0,-2,6]} 1. e4 {[%emt 0:00:01]} c5 {[%emt 0:00:05]} 2. Nf3 {[%emt 0:00:04]} e6 {[%emt 0:00:05]} 3. d4 {[%emt 0:00:04]} cxd4 {[%emt 0:00:05]} 4. Nxd4 {[%emt 0:00:07]} Nf6 {[%emt 0:00:04]} 5. Nc3 {[%emt 0:00:07]} Nc6 {[%emt 0:00:03]} 6. a3 {[%emt 0:00:19]} d6 {[%emt 0:00:24]} 7. Be2 {[%emt 0:01:40]} Be7 {[%emt 0:00:26]} 8. O-O {[%emt 0:00:58] 8.Be3 is the fancy move.} O-O {[%emt 0:00:18]} 9. Be3 {[%emt 0:00:22]} e5 {[%emt 0:03:01] B83: Sicilian Scheveningen: 6 Be2, lines without ...a6.} 10. Nb3 {[%emt 0:01:52]} Be6 {[%emt 0:00:32]} 11. Bf3 {[%emt 0:01:08] [#]} h6 $146 {[%emt 0:15:52]} ({Predecessor:} 11... Rc8 12. Qd2 h6 13. h3 Re8 14. Nd5 Nh7 15. Rad1 Bg5 16. Bg4 Bxg4 17. hxg4 Ne7 {½-½ Efimenko,Z (2599)-Nguyen,T (2627) ROM-chT Oradea 2022 (1.3)}) 12. Nd5 {[%emt 0:04:15]} Bxd5 {[%emt 0:05:30]} 13. exd5 {[%emt 0:01:36]} Nb8 {[%emt 0:00:20]} 14. c4 {[%emt 0:05:16]} Nbd7 {[%emt 0:02:34]} 15. Rc1 {[%emt 0:07:16]} Ne8 {[%emt 0:18:43][%cal Bf6e8,Be8d6,Bd6e4,Be4d2][%mdl 32]} 16. Bd2 {[%emt 0:09:30] The position is equal.} a5 {[%emt 0:04:51]} 17. c5 {[%emt 0:11:29]} dxc5 {[%emt 0:04:57] White must now prevent ...a4.} 18. d6 {[%emt 0:02:17][%mdl 64] Discovered Attack} Nxd6 {[%emt 0:01:43] Threatens to win with ...c4.} 19. Nxc5 {[%emt 0:00:41]} Nxc5 {[%emt 0:00:35]} 20. Rxc5 {[%emt 0:00:04] [#]} Ne4 $1 {[%emt 0:05:43][%mdl 64] Discovered Attack, Double Attack} 21. Rc2 {[%emt 0:00:07]} Nxd2 {[%emt 0:03:07]} 22. Rxd2 {[%emt 0:00:09]} Qb6 {[%emt 0:02:04]} 23. Rd7 {[%emt 0:00:42][%csl LRb7,LRe7]} Rad8 {[%emt 0:00:52]} 24. Rxb7 {[%emt 0:00:22]} Qxb7 {[%emt 0:06:58]} 25. Bxb7 {[%emt 0:00:11]} Rxd1 {[%emt 0:00:02]} 26. Rxd1 {[%emt 0:00:06]} Rb8 {[%emt 0:01:01]} 27. Rd7 {[%emt 0:01:19]} Rd8 {[%emt 0:04:20] Weighted Error Value: White=0.07 (flawless) /Black=0.05 (flawless)} 1/2-1/2